fUST/lending_fUST_20250406
["ID","MTS","AMOUNT","RATE_DAILY","PERIOD"]
[357222723,1743921040055,-500.0,0.00021917,2]
[357222724,1743921040063,-500.0,0.00021917,2]
[357222725,1743921040073,-500.0,0.00021917,2]
[357222726,1743921040082,-500.0,0.00021917,2]
[357222727,1743921040091,-500.0,0.00021917,2]
[357222728,1743921040101,-500.0,0.00021917,2]
[357222729,1743921040110,-171.37495011,0.00021917,2]
[357222730,1743921040120,-3041.64,0.00021917,2]
[357222731,1743921040130,-500.0,0.00021917,2]
[357222732,1743921040139,-283.11,0.00021917,2]
[357222733,1743921040156,-500.0,0.00021917,2]
[357222734,1743921040169,-500.0,0.00021917,2]
[357222735,1743921040179,-151.0,0.00021917,2]
[357222736,1743921040188,-151.0,0.00021917,2]
[357222737,1743921040198,-500.0,0.00021917,2]
[357222738,1743921040209,-500.0,0.00021917,2]
[357222739,1743921040219,-500.0,0.00021917,2]
[357222741,1743921040229,-500.0,0.00021917,2]
[357222742,1743921040239,-500.0,0.00021917,2]
[357222743,1743921040249,-500.0,0.00021917,2]
[357222745,1743921040259,-500.0,0.00021917,2]
[357222746,1743921040269,-500.0,0.00021917,2]
[357222747,1743921040279,-500.0,0.00021917,2]
[357222748,1743921040288,-500.0,0.00021917,2]
[357222749,1743921040298,-500.0,0.00021917,2]
[357222750,1743921040308,-500.0,0.00021917,2]
[357222751,1743921040318,-500.0,0.00021917,2]
[357222752,1743921040327,-500.0,0.00021917,2]
[357222753,1743921040338,-507.44633644,0.00021917,2]
[357222754,1743921040348,-500.0,0.00021917,2]
[357222755,1743921040358,-500.0,0.00021917,2]
[357222756,1743921040367,-500.0,0.00021917,2]
[357222757,1743921040378,-500.0,0.00021917,2]
[357222758,1743921040387,-229.7313572,0.00021917,2]
[357222759,1743921040397,-500.0,0.00021917,2]
[357222760,1743921040407,-500.0,0.00021917,2]
[357222761,1743921040416,-242.3323691,0.00021917,2]
[357222762,1743921040425,-620.56,0.00021917,2]
[357222763,1743921040435,-500.0,0.00021917,2]
[357222764,1743921040444,-500.0,0.00021917,2]
[357222765,1743921040454,-500.0,0.00021917,2]
[357222766,1743921040463,-500.0,0.00021917,2]
[357222767,1743921040472,-500.0,0.00021917,2]
[357222768,1743921040481,-151.0,0.00021917,2]
[357222769,1743921040491,-500.0,0.00021917,2]
[357222770,1743921040500,-500.0,0.00021917,2]
[357222771,1743921040510,-500.0,0.00021917,2]
[357222772,1743921040520,-548.05943611,0.00021917,2]
[357222773,1743921040529,-500.0,0.00021917,2]
[357222774,1743921040538,-500.0,0.00021917,2]
[357222775,1743921040548,-345.84,0.00021917,2]
[357222776,1743921040557,-500.0,0.00021917,2]
[357222777,1743921040567,-151.0,0.00021946,7]
[357222778,1743921040576,-151.0,0.00021946,7]
[357222779,1743921040586,-209.263387,0.00021946,7]
[357222780,1743921040595,-151.0,0.00021946,7]
[357222781,1743921040605,-209.263387,0.00021946,7]
[357222782,1743921040614,-151.0,0.00021946,7]
[357222783,1743921040624,-500.0,0.00021968,2]
[357222784,1743921040635,-397.91946701,0.00021968,2]
[357222785,1743921040644,-282.2933456,0.00021968,2]
[357222786,1743921040653,-419.28457398,0.00021969,2]
[357222787,1743921040663,-500.0,0.00021973,2]
[357222788,1743921040672,-500.0,0.00021973,2]
[357222789,1743921040682,-500.0,0.00021973,2]
[357222790,1743921040691,-500.0,0.00021973,2]
[357222791,1743921040701,-645.79324118,0.00021973,2]
[357222792,1743921040713,-500.0,0.00021973,2]
[357222793,1743921040723,-500.0,0.00021973,2]
[357222794,1743921040732,-500.0,0.00021973,2]
[357222795,1743921040741,-500.0,0.00021973,2]
[357222796,1743921040751,-500.0,0.00021973,2]
[357222797,1743921040761,-500.0,0.00021973,2]
[357222798,1743921040770,-500.0,0.00021973,2]
[357222799,1743921040779,-500.0,0.00021973,2]
[357222800,1743921040789,-500.0,0.00021973,2]
[357222801,1743921040799,-500.0,0.00021973,2]
[357222802,1743921040808,-500.0,0.00021973,2]
[357222803,1743921040818,-151.0,0.00021973,7]
[357222804,1743921040827,-152.0,0.00022093,2]
[357222805,1743921040837,-500.0,0.00022173,2]
[357222806,1743921040846,-164.17533882,0.00022191,3]
[357222807,1743921040855,-520.15103073,0.00022191,2]
[357222808,1743921040865,-296.39,0.00022191,2]
[357222809,1743921040874,-151.782492,0.00022191,7]
[357222810,1743921040885,-151.0,0.00022191,7]
[357222811,1743921040895,-500.0,0.00022191,2]
[357222812,1743921040904,-647.05839893,0.00022191,2]
[357222813,1743921040914,-500.0,0.00022191,2]
[357222814,1743921040923,-500.0,0.00022191,2]
[357222815,1743921040932,-500.0,0.00022191,2]
[357222816,1743921040941,-500.0,0.00022191,2]
[357222817,1743921040951,-500.0,0.00022191,2]
[357222818,1743921040961,-500.0,0.00022191,2]
[357222819,1743921040975,-500.0,0.00022191,2]
[357222820,1743921040985,-500.0,0.00022191,2]
[357222821,1743921040994,-500.0,0.00022191,2]
[357222822,1743921041004,-500.0,0.00022191,2]
[357222823,1743921041014,-500.0,0.00022191,2]
[357222824,1743921041023,-500.0,0.00022191,2]
[357222825,1743921041033,-500.0,0.00022191,2]
[357222826,1743921041043,-361.108112,0.00022191,7]
[357222827,1743921041052,-500.0,0.00022191,2]
[357222828,1743921041062,-500.0,0.00022191,2]
[357222829,1743921041072,-500.0,0.00022191,2]
[357222830,1743921041081,-361.108112,0.00022191,7]
[357222831,1743921041090,-500.0,0.00022191,2]
[357222832,1743921041100,-500.0,0.00022191,2]
[357222833,1743921041109,-500.0,0.00022191,2]
[357222834,1743921041119,-500.0,0.00022191,2]
[357222835,1743921041129,-500.0,0.00022191,2]
[357222836,1743921041139,-500.0,0.00022191,2]
[357222837,1743921041149,-500.0,0.00022191,2]
[357222838,1743921041159,-500.0,0.00022191,2]
[357222839,1743921041168,-500.0,0.00022191,2]
[357222840,1743921041177,-500.0,0.00022191,2]
[357222841,1743921041187,-500.0,0.00022191,2]
[357222842,1743921041196,-500.0,0.00022191,2]
[357222843,1743921041205,-507.23979845,0.00022191,2]
[357222844,1743921041217,-196.13708759,0.00022191,2]
[357222845,1743921041227,-500.0,0.00022191,2]
[357222846,1743921041237,-270.40693,0.00022191,7]
[357222847,1743921041247,-500.0,0.00022191,2]
[357222848,1743921041256,-500.0,0.00022191,2]
[357222849,1743921041266,-151.0,0.00022191,7]
[357222850,1743921041275,-500.0,0.00022191,2]
[357222851,1743921041284,-500.0,0.00022191,2]
[357222852,1743921041293,-500.0,0.00022191,2]
[357222853,1743921041303,-543.93014497,0.00022191,2]
[357222854,1743921041312,-500.0,0.00022191,2]
[357222855,1743921041321,-515.17095955,0.00022191,2]
[357222856,1743921041331,-500.0,0.00022191,2]
[357222857,1743921041341,-544.6415922,0.00022191,2]
[357222858,1743921041351,-500.0,0.00022191,2]
[357222859,1743921041361,-500.0,0.00022191,2]
[357222860,1743921041371,-183.184274,0.00022191,7]
[357222861,1743921041381,-183.184274,0.00022191,7]
[357222862,1743921041390,-151.0,0.00022191,7]
[357222863,1743921041399,-151.0,0.00022191,7]
[357222864,1743921041409,-500.0,0.00022191,2]
[357222865,1743921041419,-500.0,0.00022191,2]
[357222866,1743921041428,-151.0,0.00022191,7]
[357222867,1743921041438,-500.0,0.00022191,2]
[357222868,1743921041447,-500.0,0.00022191,2]
[357222869,1743921041457,-500.0,0.00022191,2]
[357222870,1743921041466,-500.0,0.00022191,2]
[357222871,1743921041476,-500.0,0.00022191,2]
[357222872,1743921041485,-500.0,0.00022191,2]
[357222873,1743921041495,-500.0,0.00022191,2]
[357222874,1743921041504,-500.0,0.00022191,2]
[357222875,1743921041513,-500.0,0.00022191,2]
[357222876,1743921041523,-500.0,0.00022191,2]
[357222877,1743921041532,-500.0,0.00022191,2]
[357222878,1743921041542,-603.28119636,0.00022191,2]
[357222879,1743921041551,-1523.6637788,0.00022191,2]
[357222880,1743921041567,-1517.9762212,0.00022191,2]
[357222881,1743921041576,-500.0,0.00022191,2]
[357222882,1743921041586,-500.0,0.00022191,2]
[357222883,1743921041595,-500.0,0.00022191,2]
[357222884,1743921041605,-151.0,0.00022191,7]
[357222885,1743921041614,-151.0,0.00022191,7]
[357222886,1743921041623,-151.0,0.00022191,7]
[357222887,1743921041634,-151.0,0.00022191,7]
[357222888,1743921041644,-500.0,0.00022191,2]
[357222889,1743921041653,-500.0,0.00022191,2]
[357222890,1743921041663,-500.0,0.00022191,2]
[357222891,1743921041674,-500.0,0.00022191,2]
[357222892,1743921041683,-550.17845604,0.00022191,2]
[357222893,1743921041693,-384.58574988,0.00022191,2]
[357222894,1743921041703,-500.0,0.00022191,2]
[357222895,1743921041712,-209.263387,0.00022191,7]
[357222896,1743921041722,-500.0,0.00022191,2]
[357222897,1743921041732,-151.0,0.00022191,7]
[357222898,1743921041742,-500.0,0.00022191,2]
[357222899,1743921041752,-209.263387,0.00022191,7]
[357222900,1743921041762,-151.0,0.00022191,7]
[357222901,1743921041771,-517.10837385,0.00022191,2]
[357222902,1743921041782,-500.0,0.00022191,2]
[357222903,1743921041792,-500.0,0.00022191,2]
[357222904,1743921041802,-500.0,0.00022191,2]
[357222905,1743921041812,-500.0,0.00022191,2]
[357222906,1743921041822,-620.56,0.00022191,2]
[357222907,1743921041832,-500.0,0.00022191,2]
[357222908,1743921041842,-500.0,0.00022191,2]
[357222909,1743921041851,-500.0,0.00022191,2]
[357222910,1743921041861,-500.0,0.00022191,2]
[357222911,1743921041870,-151.0,0.00022191,2]
[357222912,1743921041880,-500.0,0.00022191,2]
[357222913,1743921041890,-500.0,0.00022191,2]
[357222914,1743921041899,-151.0,0.00022191,2]
[357222915,1743921041909,-500.0,0.00022191,2]
[357222916,1743921041918,-500.0,0.00022191,2]
[357222917,1743921041929,-500.0,0.00022191,2]
[357222918,1743921041939,-248.625428,0.000222,2]
[357222919,1743921041949,-156.5476331,0.000222,2]
[357222920,1743921041959,-156.5476331,0.000222,2]
[357222921,1743921041971,-156.5476331,0.000222,2]
[357222922,1743921041981,-156.5843743,0.000222,2]
[357222923,1743921041990,-151.0,0.00022465,7]
[357222924,1743921042000,-512.88112468,0.00022465,2]
[357222925,1743921042011,-500.0,0.00022465,2]
[357222926,1743921042020,-500.0,0.00022465,2]
[357222927,1743921042030,-512.79858635,0.00022465,2]
[357222928,1743921042041,-500.0,0.00022465,2]
[357222929,1743921042051,-500.0,0.00022465,2]
[357222930,1743921042061,-500.0,0.00022465,2]
[357222931,1743921042071,-361.108112,0.00022465,7]
[357222932,1743921042080,-500.0,0.00022465,2]
[357222933,1743921042090,-361.108112,0.00022465,7]
[357222934,1743921042099,-439.3034622,0.00022465,2]
[357222935,1743921042109,-220.19,0.00022465,2]
[357222936,1743921042118,-293.24,0.00022465,2]
[357222937,1743921042129,-500.0,0.00022465,2]
[357222938,1743921042139,-500.0,0.00022465,2]
[357222939,1743921042148,-503.81,0.00022465,2]
[357222940,1743921042158,-191.145469,0.00022465,7]
[357222941,1743921042167,-500.0,0.00022465,2]
[357222942,1743921042177,-500.0,0.00022465,2]
[357222943,1743921042187,-500.0,0.00022465,2]
[357222944,1743921042196,-183.184274,0.00022465,7]
[357222945,1743921042206,-183.184274,0.00022465,7]
[357222946,1743921042215,-151.0,0.00022465,7]
[357222947,1743921042225,-151.0,0.00022465,7]
[357222948,1743921042241,-500.0,0.00022465,2]
[357222949,1743921042260,-151.0,0.00022465,7]
[357222950,1743921042269,-162.68052209,0.00022465,2]
[357222951,1743921042279,-500.0,0.00022465,2]
[357222952,1743921042288,-500.0,0.00022465,2]
[357222953,1743921042297,-500.0,0.00022465,2]
[357222954,1743921042307,-500.0,0.00022465,2]
[357222955,1743921042316,-500.0,0.00022465,2]
[357222956,1743921042326,-500.0,0.00022465,2]
[357222957,1743921042335,-500.0,0.00022465,2]
[357222958,1743921042344,-500.0,0.00022465,2]
[357222959,1743921042354,-500.0,0.00022465,2]
[357222960,1743921042363,-3041.64,0.00022465,2]
[357222961,1743921042373,-500.0,0.00022465,2]
[357222962,1743921042383,-500.0,0.00022465,2]
[357222963,1743921042392,-500.0,0.00022465,2]
[357222964,1743921042402,-500.0,0.00022465,2]
[357222966,1743921042412,-500.0,0.00022465,2]
[357222967,1743921042421,-500.0,0.00022465,2]
[357222968,1743921042431,-500.0,0.00022465,2]
[357222969,1743921042441,-209.263387,0.00022465,7]
[357222971,1743921042548,-500.0,0.00022465,2]
[357222972,1743921042558,-355.18,0.00022465,2]
[357222973,1743921042567,-151.0,0.00022465,7]
[357222974,1743921042576,-209.263387,0.00022465,7]
[357222975,1743921042586,-151.0,0.00022465,7]
[357222976,1743921042595,-500.0,0.00022465,2]
[357222977,1743921042604,-500.0,0.00022465,2]
[357222978,1743921042613,-620.56,0.00022465,2]
[357222979,1743921042623,-500.0,0.00022465,2]
[357222980,1743921042632,-513.53538168,0.00022465,2]
[357222981,1743921042642,-500.0,0.00022465,2]
[357222982,1743921042651,-500.0,0.00022465,2]
[357222983,1743921042660,-500.0,0.00022465,2]
[357222984,1743921042669,-500.0,0.00022465,2]
[357222985,1743921042679,-504.66472317,0.00022465,2]
[357222986,1743921042688,-500.0,0.00022465,2]
[357222987,1743921042697,-156.5476331,0.000225,2]
[357222988,1743921042707,-4092.82685889,0.00022521,4]
[357222989,1743921042716,-193.0,0.0002259,2]
[357222990,1743921042725,-500.0,0.00022739,2]
[357222991,1743921042735,-500.0,0.00022739,2]
[357222992,1743921042744,-500.0,0.00022739,2]
[357222993,1743921042753,-500.0,0.00022739,2]
[357222994,1743921042763,-500.0,0.00022739,2]
[357222995,1743921042772,-500.0,0.00022739,2]
[357222996,1743921042781,-330.77,0.00022739,2]
[357222997,1743921042791,-500.0,0.00022739,2]
[357222998,1743921042801,-500.0,0.00022739,2]
[357222999,1743921042810,-525.03,0.00022739,2]
[357223000,1743921042819,-3041.64,0.00022739,2]
[357223001,1743921042829,-500.0,0.00022739,2]
[357223002,1743921042839,-500.0,0.00022739,2]
[357223003,1743921042848,-151.0,0.00022739,7]
[357223004,1743921042858,-151.0,0.00022739,7]
[357223005,1743921042868,-500.0,0.00022739,2]
[357223006,1743921042877,-500.0,0.00022739,2]
[357223007,1743921042887,-500.0,0.00022739,2]
[357223008,1743921042896,-500.0,0.00022739,2]
[357223009,1743921042905,-620.56,0.00022739,2]
[357223010,1743921042915,-216.09,0.00022739,2]
[357223011,1743921042924,-234.02482737,0.00022739,2]
[357223012,1743921042934,-500.0,0.00022739,2]
[357223013,1743921042944,-151.0,0.00022739,2]
[357223014,1743921042953,-155.4889027,0.000228,2]
[357223015,1743921042963,-1187.4520955,0.000228,2]
[357223016,1743921042976,-159.7808618,0.000228,2]
[357223017,1743921042985,-156.5843743,0.000228,2]
[357223018,1743921042994,-183.184274,0.000229,7]
[357223019,1743921043003,-183.184274,0.000229,7]
[357223020,1743921043012,-151.0,0.000229,7]
[357223021,1743921043021,-151.0,0.000229,7]
[357223022,1743921043031,-209.263387,0.000229,7]
[357223023,1743921043041,-151.0,0.000229,7]
[357223024,1743921043051,-209.263387,0.000229,7]
[357223026,1743921043061,-151.0,0.000229,7]
[357223027,1743921043071,-76361.03952757,0.0002298,2]
[357223028,1743921043080,-151.0,0.0002298,7]
[357223029,1743921043090,-151.0,0.0002298,7]
[357223030,1743921043100,-361.108112,0.0002298,7]
[357223031,1743921043110,-361.108112,0.0002298,7]
[357223032,1743921043119,-183.184274,0.0002298,7]
[357223033,1743921043128,-183.184274,0.0002298,7]
[357223034,1743921043138,-279.248141,0.0002298,7]
[357223035,1743921043148,-151.0,0.0002298,7]
[357223036,1743921043158,-151.0,0.0002298,7]
[357223037,1743921043168,-151.0,0.0002298,7]
[357223038,1743921043178,-229.629392,0.0002298,7]
[357223039,1743921043188,-209.263387,0.0002298,7]
[357223040,1743921043198,-151.0,0.0002298,7]
[357223041,1743921043208,-209.263387,0.0002298,7]
[357223042,1743921043217,-151.0,0.0002298,7]
[357223043,1743921043227,-151.0,0.0002298,2]
[357223044,1743921043236,-500.0,0.00022989,2]
[357223045,1743921043246,-5197.55977941,0.0002299,2]
[357223046,1743921043256,-3000.0,0.00023,2]
[357223047,1743921043265,-156.5476331,0.00023,2]
[357223048,1743921043275,-156.5476331,0.00023,2]
[357223049,1743921043285,-156.5476331,0.00023,2]
[357223050,1743921043295,-3000.0,0.0002301,2]
[357223051,1743921043305,-3041.64,0.00023013,2]
[357223052,1743921043314,-290.87913416,0.00023013,2]
[357223053,1743921043324,-500.0,0.00023013,2]
[357223054,1743921043334,-500.0,0.00023013,2]
[357223055,1743921043343,-620.56,0.00023013,2]
[357223056,1743921043353,-3000.0,0.0002302,2]
[357223057,1743921043363,-3000.0,0.0002303,2]
[357223058,1743921043372,-299.76535899,0.00023039,2]
[357223059,1743921043382,-500.0,0.00023039,2]
[357223060,1743921043392,-3000.0,0.0002304,2]
[357223061,1743921043402,-3000.0,0.0002305,2]
[357223062,1743921043412,-3000.0,0.0002306,2]
[357223063,1743921043421,-183.184274,0.0002306,7]
[357223064,1743921043430,-183.184274,0.0002306,7]
[357223065,1743921043440,-193.47288726,0.0002306,7]
[357223066,1743921043449,-151.0,0.0002306,7]
[357223067,1743921043459,-151.0,0.0002306,7]
[357223068,1743921043469,-209.263387,0.0002306,7]
[357223069,1743921043478,-151.0,0.0002306,7]
[357223070,1743921043487,-209.263387,0.0002306,7]
[357223071,1743921043496,-151.0,0.0002306,7]
[357223072,1743921043506,-151.0,0.0002306,2]
[357223073,1743921043515,-3000.0,0.0002307,2]
[357223074,1743921043524,-246.82436197,0.0002308,2]
[357223075,1743921043540,-597.95323649,0.0002308,2]
[357223076,1743921043584,-167.67627354,0.0002308,2]
[357223077,1743921043596,-1987.546128,0.0002308,2]
[357223078,1743921043606,-151.0,0.0002308,7]
[357223079,1743921043615,-151.0,0.0002308,7]
[357223080,1743921043625,-361.108112,0.0002308,7]
[357223081,1743921043635,-361.108112,0.0002308,7]
[357223082,1743921043644,-1576.67120795,0.0002309,2]
[357223083,1743921043656,-1423.32879205,0.0002309,2]
[357223084,1743921043666,-557.03481278,0.00023098,2]
[357223085,1743921043677,-245.0,0.00023098,2]
[357223086,1743921043688,-2360.6265192,0.000231,2]
[357223095,1743921252871,-151.0,0.00020842,2]
[357223096,1743921303960,-185.41821239,0.00020842,2]
[357223097,1743921360799,-31.21149341,0.00020842,2]
[357223098,1743921360831,-132.3702942,0.00021773,2]
[357223099,1743921364043,-231.46438945,0.0002,4]
[357223100,1743921425973,-182.36224909,0.00019999,2]
[357223101,1743921482868,-261.69449216,0.0002,4]
[357223102,1743921487802,-152.0,0.00019999,2]
[357223103,1743921545600,-300.0,0.00019999,2]
[357223104,1743921603844,-200.0,0.00019999,2]
[357223105,1743921666502,-185.41821239,0.00019999,2]
[357223106,1743921684901,-37.58178761,0.00019999,2]
[357223107,1743921684923,-121.93458126,0.0002,4]
[357223108,1743921704704,-204.36,0.0001999,2]
[357223109,1743921704866,-63.64,0.0001999,2]
[357224159,1743921953105,-457.61382853,0.0001999,2]
[357224160,1743921953126,-268.0,0.00019999,2]
[357224161,1743921953146,-2545.15682961,0.0002,4]
[357224542,1743922047329,-173.99563519,0.0002,4]
[357224543,1743922159236,-19894.27001112,0.0002,4]
[357224544,1743922160054,-159.5185218,0.0002,4]
[357224548,1743922168098,-2338.81807801,0.0002,4]
[357224549,1743922168119,-1367.2957389,0.00020218,2]
[357224550,1743922168139,-2411.2796838,0.00020338,2]
[357224551,1743922168160,-261.6944921,0.00020479,2]
[357224552,1743922168180,-309.702076,0.00020825,2]
[357224553,1743922168201,-4311.62119858,0.000209,3]
[357224554,1743922168222,-1701.61753022,0.00020926,2]
[357224555,1743922168242,-5107.825952,0.00021023,4]
[357224556,1743922168265,-1192.68848057,0.00021026,2]
[357224557,1743922168287,-300.0,0.00021074,2]
[357224558,1743922168307,-156.5476331,0.00021378,2]
[357224559,1743922168331,-3750.57157362,0.00021555,3]
[357224591,1743922232066,-385.41821239,0.00021074,2]
[357224592,1743922232076,-251.66341493,0.00021773,2]
[357224593,1743922232088,-248.33658507,0.00021773,2]
[357224594,1743922232097,-49.99195489,0.00021773,2]
[357224595,1743922232108,-500.0,0.00021799,2]
[357224596,1743922232117,-500.0,0.00021799,2]
[357224597,1743922232127,-500.0,0.00021799,2]
[357224598,1743922232136,-500.0,0.00021799,2]
[357224599,1743922232145,-500.0,0.00021799,2]
[357224600,1743922232155,-500.0,0.00021799,2]
[357224601,1743922232164,-500.0,0.00021799,2]
[357224602,1743922232174,-500.0,0.00021799,2]
[357224603,1743922232185,-500.0,0.00021799,2]
[357224604,1743922232194,-500.0,0.00021799,2]
[357224605,1743922232204,-500.0,0.00021799,2]
[357224606,1743922232214,-500.0,0.00021799,2]
[357224607,1743922232223,-500.0,0.00021799,2]
[357224608,1743922232232,-500.0,0.00021799,2]
[357224609,1743922232241,-500.0,0.00021799,2]
[357224610,1743922232251,-500.0,0.00021799,2]
[357224611,1743922232260,-500.0,0.00021799,2]
[357224612,1743922232269,-500.0,0.00021799,2]
[357224614,1743922232278,-500.0,0.00021799,2]
[357224616,1743922232288,-500.0,0.00021799,2]
[357224618,1743922232297,-549.82199668,0.00021799,2]
[357224620,1743922232306,-500.0,0.00021799,2]
[357224622,1743922232316,-500.0,0.00021799,2]
[357224624,1743922232325,-500.0,0.00021799,2]
[357224626,1743922232334,-500.0,0.00021799,2]
[357224628,1743922232347,-500.0,0.00021799,2]
[357224630,1743922232356,-500.0,0.00021799,2]
[357224632,1743922232365,-500.0,0.00021799,2]
[357224634,1743922232375,-500.0,0.00021799,2]
[357224636,1743922232384,-385.96868755,0.00021799,2]
[357224638,1743922232394,-500.0,0.00021799,2]
[357224640,1743922232403,-500.0,0.00021799,2]
[357224642,1743922232413,-50000.0,0.000218,2]
[357224655,1743922232423,-50000.0,0.000218,2]
[357224657,1743922232539,-11497.01,0.000218,2]
[357224659,1743922232549,-242835.45040938,0.00021817,2]
[357224661,1743922232558,-156.84140681,0.00021817,2]
[357224663,1743922232568,-151.0,0.00021817,2]
[357224665,1743922232577,-151.0,0.00021817,2]
[357224667,1743922232588,-2105.259943,0.00021817,2]
[357224669,1743922232598,-2105.259943,0.00021817,2]
[357224671,1743922232607,-151.0,0.00021817,2]
[357224673,1743922232616,-151.0,0.00021817,2]
[357224676,1743922232625,-151.0,0.00021817,2]
[357224678,1743922232635,-151.0,0.00021817,2]
[357224679,1743922232645,-151.0,0.00021817,2]
[357224681,1743922232654,-216.664867,0.00021817,2]
[357224682,1743922232663,-216.664867,0.00021817,2]
[357224683,1743922232672,-151.0,0.00021817,2]
[357224685,1743922232682,-190.24265119,0.00021873,2]
[357224687,1743922232691,-500.0,0.00021873,2]
[357224689,1743922232700,-511.43058487,0.00021873,2]
[357224691,1743922232709,-500.0,0.00021873,2]
[357224693,1743922232720,-500.0,0.00021873,2]
[357224695,1743922232730,-502.78649841,0.00021873,2]
[357224697,1743922232740,-501.04305476,0.00021873,2]
[357224699,1743922232749,-500.0,0.00021873,2]
[357224701,1743922232758,-500.0,0.00021873,2]
[357224703,1743922232768,-500.0,0.00021873,2]
[357224704,1743922232777,-439.55767493,0.00021873,2]
[357224705,1743922232787,-500.0,0.00021873,2]
[357224706,1743922232795,-500.0,0.00021873,2]
[357224707,1743922232804,-501.55263078,0.00021873,2]
[357224708,1743922232814,-305.93348339,0.00021873,2]
[357224709,1743922232824,-500.0,0.00021873,2]
[357224710,1743922232833,-500.0,0.00021873,2]
[357224711,1743922232842,-500.0,0.00021873,2]
[357224712,1743922232851,-4042.8814397,0.000219,3]
[357224713,1743922232860,-292.79649427,0.00021904,2]
[357224714,1743922232870,-156.72050417,0.00021904,2]
[357224715,1743922232879,-151.0,0.00021904,2]
[357224716,1743922232888,-200.0,0.00021904,2]
[357224717,1743922232897,-164.17533881,0.00021917,3]
[357224718,1743922232907,-500.0,0.00021917,2]
[357224719,1743922232916,-500.0,0.00021917,2]
[357224720,1743922232927,-500.0,0.00021917,2]
[357224721,1743922232937,-500.0,0.00021917,2]
[357224722,1743922232947,-500.0,0.00021917,2]
[357224723,1743922232956,-501.18521642,0.00021917,2]
[357224724,1743922232966,-500.0,0.00021917,2]
[357224725,1743922232986,-500.0,0.00021917,2]
[357224726,1743922232996,-500.0,0.00021917,2]
[357224727,1743922233006,-500.0,0.00021917,2]
[357224728,1743922233016,-500.0,0.00021917,2]
[357224729,1743922233026,-500.0,0.00021917,2]
[357224730,1743922233036,-500.0,0.00021917,2]
[357224731,1743922233046,-500.0,0.00021917,2]
[357224732,1743922233056,-500.0,0.00021917,2]
[357224733,1743922233067,-510.41064793,0.00021917,2]
[357224734,1743922233077,-500.0,0.00021917,2]
[357224735,1743922233088,-500.0,0.00021917,2]
[357224736,1743922233099,-500.0,0.00021917,2]
[357224737,1743922233109,-500.0,0.00021917,2]
[357224738,1743922233119,-500.0,0.00021917,2]
[357224739,1743922233130,-500.0,0.00021917,2]
[357224740,1743922233140,-492.74122702,0.00021917,2]
[357224741,1743922233151,-500.0,0.00021917,2]
[357224742,1743922233161,-500.0,0.00021917,2]
[357224743,1743922233172,-500.0,0.00021917,2]
[357224744,1743922233182,-500.0,0.00021917,2]
[357224745,1743922233193,-500.0,0.00021917,2]
[357224746,1743922233203,-500.0,0.00021917,2]
[357224747,1743922233214,-500.0,0.00021917,2]
[357224748,1743922233224,-500.0,0.00021917,2]